[Event "MCCT Chessable Masters-KO 2022"]
[Site "Online"]
[Date "2022.05.23"]
[Round "2.1"]
[White "Giri, Anish"]
[Black "Praggnanandhaa R"]
[Result "0-1"]
[ECO "C54"]
[WhiteElo "2761"]
[BlackElo "2642"]
[Annotator "TA"]
[PlyCount "66"]
[EventDate "2022.05.23"]
[EventType "k.o."]
[EventCountry "NET"]
[SourceTitle "playchess.com"]
[Source "ChessBase"]
[SourceQuality "1"]
[TimeControl "300+3"]

{[%evp 12,66,8,10,31,20,19,7,14,8,18,20,20,16,33,18,16,20,27,15,20,-6,0,0,0,14,26,0,0,0,0,0,0,0,0,0,0,0,0,0,-9,-9,0,0,0,0,0,0,0,-4,-6,-26,0,-440,-439,-500,-487]} 1. e4 {[%emt 0:00:00]} e5 {[%emt 0:00:00]} 2. Nf3 {[%emt 0:00:01]} Nc6 {[%emt 0:00:01]} 3. Bc4 {[%emt 0:00:00]} Bc5 {[%emt 0:00:03]} 4. O-O {[%emt 0:00:02]} Nf6 {[%emt 0:00:01]} 5. d3 {[%emt 0:00:00]} d6 {[%emt 0:00:01]} 6. c3 {[%emt 0:00:01]} O-O {[%emt 0:00:01]} 7. Re1 {[%emt 0:00:01]} a6 {[%emt 0:00:02] C54: Giuoco Piano: 4 c3 Nf6, main lines with 5 d4 and 5 d3.} 8. h3 {[%emt 0:00:16] 8.h3 is a critical line.} h6 {[%emt 0:00:05]} 9. a4 {[%emt 0:00:43]} a5 {[%emt 0:00:03] The position is equal.} 10. Bb5 {[%emt 0:00:09]} Ba7 {[%emt 0:00:28]} 11. Nbd2 {[%emt 0:00:13][%cal Bb1d2,Bd2f1,Bf1g3][%mdl 32]} Bd7 {[%emt 0:00:17]} 12. Nf1 {[%emt 0:00:02]} Ne7 {[%emt 0:00:11]} 13. Ng3 {[%emt 0:00:16]} c6 {[%emt 0:01:35]} 14. Bc4 {[%emt 0:00:01] [#]} Ng6 $146 {[%emt 0:00:01]} ({Predecessor:} 14... Re8 15. d4 exd4 16. cxd4 d5 17. e5 Nh5 18. Nxh5 dxc4 19. Qd2 Nf5 20. Ra3 Be6 21. Re4 Kh8 {1-0 (29) Travnik,A (800)-Sandocal,U (1689) LSS email 2015}) 15. d4 {[%emt 0:00:17]} exd4 {[%emt 0:00:22]} 16. cxd4 {[%emt 0:00:02]} d5 {[%emt 0:00:03]} 17. exd5 {[%emt 0:00:11]} Nxd5 {[%emt 0:00:01]} 18. Bd2 {[%emt 0:00:19]} Be6 {[%emt 0:00:28][%cal Od5e3]} 19. Qc2 {[%emt 0:00:24][%cal Oe1e6] [#] And now Rxe6! would win.} (19. Qc1 $5 {[%cal Rd2h6]}) 19... Re8 {[%emt 0:00:03]} 20. Re4 {[%emt 0:00:21]} Bb8 {[%emt 0:00:53]} 21. Rae1 {[%emt 0:00:04][%cal Oe4e6] Strongly threatening Rxe6!} (21. Nh5 {is interesting.} Re7 22. Re2 Qd6 23. Ng3) 21... Bxg3 {[%emt 0:00:07]} 22. fxg3 {[%emt 0:00:01][%cal Oe4e6] Threatens to win with Rxe6!} Nf8 {[%emt 0:00:01]} 23. Re5 {[%emt 0:00:59]} Nf6 {[%emt 0:00:11][%cal Bd5f6,Bf6e8,Be8d6][%mdl 32]} 24. b3 {[%emt 0:00:47]} Bd5 {[%emt 0:00:43]} 25. Rxe8 {[%emt 0:00:32]} Nxe8 {[%emt 0:00:01]} 26. Ne5 $132 {[%emt 0:00:16][%mdl 2048] White puts up resistance} Nd6 {[%emt 0:00:04]} 27. Kh2 {[%emt 0:00:08]} Ne6 {[%emt 0:00:04]} 28. Be3 {[%emt 0:00:04]} Qe7 {[%emt 0:00:07]} 29. Rf1 {[%emt 0:00:05]} Re8 {[%emt 0:00:08]} 30. Qc1 {[%emt 0:00:05]} f6 {[%emt 0:00:06]} 31. Ng6 {[%emt 0:00:08]} Qf7 {[%emt 0:00:01]} 32. Qc2 {[%emt 0:00:02][%mdl 8192] [#]} (32. Bxd5 $11 cxd5 33. Nf4) 32... Be4 $19 {[%emt 0:00:14]} 33. Ne5 {[%emt 0:00:10]} Bxc2 {[%emt 0:00:02] Weighted Error Value: White=0.32/Black=0.04 (flawless)} 0-1

[Event "MCCT Chessable Masters-KO 2022"]
[Site "Online"]
[Date "2022.05.25"]
[Round "3.1"]
[White "Ding, Liren"]
[Black "Praggnanandhaa R"]
[Result "0-1"]
[ECO "A29"]
[WhiteElo "2806"]
[BlackElo "2642"]
[Annotator "TA"]
[PlyCount "116"]
[EventDate "2022.05.23"]
[EventType "k.o."]
[EventCountry "NET"]
[SourceTitle "playchess.com"]
[Source "ChessBase"]
[SourceQuality "1"]
[TimeControl "900+10"]

{[%evp 16,116,0,0,7,0,0,0,7,-8,8,1,9,0,0,-19,-20,-22,-9,-42,-27,-50,-47,-50,-70,-43,-36,-41,-49,-40,-36,-54,-37,-34,-43,-47,-47,-57,-65,-66,0,-23,-27,-43,-42,-36,-43,-34,-39,-48,-55,-44,-3,-70,-15,-61,-40,-60,-59,-56,-64,-58,-52,-82,-82,-82,-82,-82,-82,-82,-8,-125,-125,-125,-125,-462,-440,-294,-82,-101,-101,-101,-101,-125,-110,-110,-110,-125,-125,-1264,-1223,-972,-125,-125,0,-125,-125,-2254,-1952,-133,-2953,-1481,-643]} 1. c4 {[%emt 0:00:00]} e5 {[%emt 0:00:00]} 2. Nc3 {[%emt 0:00:02]} Nf6 {[%emt 0:00:02]} 3. Nf3 {[%emt 0:00:01]} Nc6 {[%emt 0:00:01]} 4. g3 {[%emt 0:00:01]} d5 {[%emt 0:00:01]} 5. cxd5 {[%emt 0:00:01]} Nxd5 {[%emt 0:00:00]} 6. Bg2 {[%emt 0:00:00]} Nb6 {[%emt 0:00:01]} 7. O-O {[%emt 0:00:02]} Be7 {[%emt 0:00:01]} 8. b3 {[%emt 0:00:00]} O-O {[%emt 0:00:06]} 9. Bb2 {[%emt 0:00:02][%cal Od2d4]} Bf5 {[%emt 0:03:23] A29: English Opening: Four Knights Variation with 4 g3.} 10. d3 {[%emt 0:00:54]} Qd7 {[%emt 0:00:54]} 11. Rc1 {[%emt 0:00:12]} Rad8 {[%emt 0:01:17] [#] The position is equal.} 12. a3 $146 {[%emt 0:00:44]} ({Predecessor:} 12. Nd2 Bh3 13. Nc4 Nxc4 14. bxc4 Bxg2 15. Kxg2 f5 16. f3 Bc5 17. Nd5 Nd4 18. Bxd4 exd4 {1-0 (31) Beck,F (1508)-Behr,J (1645) Magdeburg 2019}) 12... Rfe8 {[%emt 0:00:59]} 13. b4 {[%emt 0:00:16]} Bf8 {[%emt 0:00:59]} 14. Re1 {[%emt 0:02:58]} a5 {[%emt 0:01:31]} 15. bxa5 {[%emt 0:02:07]} (15. b5 $5 {[%cal Rb5c6]} Nd4 16. Nh4 $11) 15... Nxa5 {[%emt 0:00:03]} 16. Nd2 {[%emt 0:00:02]} h6 {[%emt 0:00:32]} 17. h4 {[%emt 0:02:12]} Ra8 {[%emt 0:01:32][%cal Bd8a8,Ba8a5,Ba5c5,Bc5c4][%mdl 32]} 18. Rb1 {[%emt 0:03:12]} Be6 {[%emt 0:02:50]} 19. Qc1 {[%emt 0:00:32]} Nc6 {[%emt 0:00:29]} 20. Rd1 {[%emt 0:00:31]} Ra5 {[%emt 0:01:38]} 21. Nc4 {[%emt 0:00:22]} Nxc4 {[%emt 0:00:03]} 22. dxc4 {[%emt 0:00:00]} Qc8 {[%emt 0:00:01]} 23. Nd5 {[%emt 0:00:01]} Rc5 {[%emt 0:00:14]} 24. a4 {[%emt 0:02:01]} Na5 {[%emt 0:00:31]} 25. Ba3 {[%emt 0:00:02]} Rxc4 {[%emt 0:00:13]} 26. Qe3 {[%emt 0:00:41]} Bxa3 {[%emt 0:01:27]} (26... Rxa4 27. Bxf8 Bxd5 28. Bxg7 Kxg7 29. Rxd5 $11) 27. Qxa3 {[%emt 0:00:00] aiming for Ne7+.} Nc6 {[%emt 0:00:20] Prevents Ne7+.} (27... Qd8 $1 $15) 28. e3 {[%emt 0:00:43]} e4 {[%emt 0:00:02]} 29. Bf1 {[%emt 0:00:43]} Rc2 {[%emt 0:00:13]} 30. Nb4 {[%emt 0:00:59]} Nxb4 {[%emt 0:00:06]} 31. Qxb4 {[%emt 0:00:00]} Bg4 {[%emt 0:00:19]} 32. Rdc1 {[%emt 0:00:00]} Rxc1 {[%emt 0:00:07]} 33. Rxc1 {[%emt 0:00:00]} Bf3 {[%emt 0:00:02]} 34. a5 {[%emt 0:00:01]} (34. Kh2 $11) 34... Rd8 {[%emt 0:00:31]} (34... Re5 $15) 35. Bg2 {[%emt 0:00:13]} (35. Rb1 $11) 35... c6 {[%emt 0:00:14]} 36. Rb1 {[%emt 0:00:41]} Rd5 {[%emt 0:00:12]} 37. Qxb7 {[%emt 0:00:16]} Qxb7 {[%emt 0:00:01]} 38. Rxb7 {[%emt 0:00:00]} Rxa5 $15 {[%emt 0:00:01][%mdl 4096] Endgame KRB-KRB} 39. Rc7 {[%emt 0:00:08]} Rc5 {[%emt 0:00:22]} 40. g4 {[%emt 0:00:19]} Rc4 {[%emt 0:00:18]} 41. g5 {[%emt 0:00:31]} hxg5 {[%emt 0:00:05]} 42. hxg5 {[%emt 0:00:00][%cal Og5g6]} Rc5 {[%emt 0:00:06]} (42... Bxg2 $17 43. Kxg2 Rc5) 43. Bxf3 {[%emt 0:00:07]} (43. g6 $1 $11 fxg6 44. Bxf3 exf3 45. Kh2) 43... exf3 $11 {[%emt 0:00:01] KR-KR} 44. Kh2 {[%emt 0:00:01][%cal Og5g6]} Rxg5 {[%emt 0:00:04]} 45. Rxc6 {[%emt 0:00:00][%mdl 8192]} (45. Rc8+ $17 Kh7 46. e4) 45... Rg2+ {[%emt 0:00:16][%cal Bg5g2,Bg2f2,Bf2f1][%mdl 32]} 46. Kh3 {[%emt 0:00:01]} Kh7 $2 {[%emt 0:00:25]} (46... Rxf2 47. Kg3 Rf1 48. e4 $17) (46... f6 $1 $19 {has better winning chances.} 47. Rc7 Rxf2) 47. Rc4 {[%emt 0:00:10]} Rxf2 {[%emt 0:00:08] Hoping for ...Re2.} 48. Kg3 {[%emt 0:00:04]} Rf1 {[%emt 0:00:01]} 49. Rh4+ {[%emt 0:00:31]} Kg8 {[%emt 0:00:05]} 50. Ra4 {[%emt 0:00:37]} g6 {[%emt 0:00:09] And now ...Kg7 would win.} 51. Ra7 {[%emt 0:00:06]} Kg7 {[%emt 0:00:03] Strongly threatening ...Kf6.} 52. Kg4 $2 {[%emt 0:00:08][%mdl 8192]} (52. Re7 $17) 52... Kf6 $1 $19 {[%emt 0:00:09]} ({Inferior is} 52... f2 53. Kf3 $17) 53. Ra5 {[%emt 0:00:05] [#]} Ke6 $2 {[%emt 0:00:06]} ({And not} 53... f2 54. Kf3 $17) (53... g5 $1 $19 {is more deadly.} 54. Ra4 Ke5) 54. Kf4 $17 {[%emt 0:00:03]} Kf6 {[%emt 0:00:31]} (54... f5 $17 {[%cal Og6g5] ...g5+! is the strong threat.} 55. Ra6+ Kf7 56. Ra7+ Kf6 57. Ra6+ Kg7 58. Ra7+ Kh6) 55. Ra6+ {[%emt 0:00:01]} (55. Kg4 $1 $11 {was the only way to keep the balance.} g5 56. Kg3) 55... Kg7 {[%emt 0:00:01][%cal Og6g5] Threatens to win with ...g5+!} 56. Kg3 $2 {[%emt 0:00:20][%mdl 8192] [#]} (56. Ra5 $17) 56... f5 $1 $19 {[%emt 0:00:22]} ({Worse is} 56... f2 57. Kg2 Rh1 58. Kxf2 $17) 57. Ra5 {[%emt 0:00:19]} Kf6 {[%emt 0:00:04]} 58. Ra6+ {[%emt 0:00:47]} Ke5 {[%emt 0:00:10] Weighted Error Value: White=0.51/Black=0.29 (precise)} 0-1

[Event "MCCT Chessable Masters-KO 2022"]
[Site "Online"]
[Date "2022.05.25"]
[Round "3.1"]
[White "Praggnanandhaa R"]
[Black "Ding, Liren"]
[Result "0-1"]
[ECO "D35"]
[WhiteElo "2642"]
[BlackElo "2806"]
[Annotator "TA"]
[PlyCount "84"]
[EventDate "2022.05.23"]
[EventType "k.o."]
[EventCountry "NET"]
[SourceTitle "playchess.com"]
[Source "ChessBase"]
[SourceQuality "1"]
[TimeControl "900+10"]

{[%evp 15,84,11,17,11,15,18,18,0,20,12,12,8,33,20,19,12,23,0,0,0,17,0,0,0,0,0,0,-54,-50,-47,-60,-48,-45,-63,-64,-115,-36,-73,-45,-54,-72,-243,-236,-231,-225,-217,-220,-483,-475,-494,-426,-534,-458,-460,-460,-472,-477,-477,-458,-468,-461,-460,-447,-433,-437,-831,-828,-813,-794,-746,-721]} 1. d4 {[%emt 0:00:00]} Nf6 {[%emt 0:00:00]} 2. c4 {[%emt 0:00:02]} e6 {[%emt 0:00:01]} 3. Nc3 {[%emt 0:00:01]} d5 {[%emt 0:00:29]} 4. cxd5 {[%emt 0:00:06]} exd5 {[%emt 0:00:00]} 5. Bg5 {[%emt 0:00:04]} c6 {[%emt 0:00:01]} 6. e3 {[%emt 0:00:08]} h6 {[%emt 0:00:19]} 7. Bh4 {[%emt 0:00:03]} Be7 {[%emt 0:00:02]} 8. Bd3 {[%emt 0:00:06]} O-O {[%emt 0:00:01]} 9. Nge2 {[%emt 0:00:07] outshines the older 9.Qc2. D35: Queen's Gambit Declined: Exchange Variation.} Re8 {[%emt 0:00:02]} 10. O-O {[%emt 0:00:02]} Nbd7 {[%emt 0:00:01]} 11. a4 {[%emt 0:00:25][%cal Ba2a4,Ba4a5][%mdl 32] The position is equal.} Nh5 {[%emt 0:00:10]} 12. Bxe7 {[%emt 0:00:03]} Qxe7 {[%emt 0:00:00]} 13. a5 {[%emt 0:00:15] [#]} Nf8 $5 $146 {[%emt 0:00:22][%mdl 8] New and interesting.} ({Predecessor:} 13... a6 14. Ra3 Nf8 15. Na4 Rb8 16. Qd2 Qg5 17. f3 g6 18. Bb1 Ng7 19. Nf4 Bf5 {½-½ (29) Caruana,F (2786)-Firouzja,A (2804) Bucharest 2022}) 14. Nc1 {[%emt 0:02:53]} Nf6 {[%emt 0:00:32]} 15. Nb3 {[%emt 0:00:19]} Rb8 {[%emt 0:02:05]} 16. Qc2 {[%emt 0:00:56]} b6 {[%emt 0:00:52]} 17. axb6 {[%emt 0:02:03]} axb6 {[%emt 0:00:00][%cal Ba7b6,Bb6b5,Bb5b4][%mdl 32]} 18. Nd2 {[%emt 0:00:01]} c5 {[%emt 0:01:55]} 19. Nf3 {[%emt 0:00:11]} c4 {[%emt 0:00:20]} 20. Bf5 {[%emt 0:02:00]} b5 {[%emt 0:00:03]} 21. Ne5 {[%emt 0:00:59]} (21. Bxc8 $11 Rexc8 22. Ra5) 21... Bxf5 $15 {[%emt 0:03:15]} 22. Qxf5 {[%emt 0:00:03]} b4 {[%emt 0:00:00]} 23. Ne2 {[%emt 0:01:27]} Ra8 {[%emt 0:01:19]} 24. Nf4 {[%emt 0:01:25]} Ne6 {[%emt 0:01:01][%cal Bf8e6,Be6g5,Bg5e4,Be4c3][%mdl 32]} 25. Nh5 {[%emt 0:03:41]} ({White should try} 25. Nxe6 $15 Qxe6 26. Qxe6 fxe6 27. f3) 25... Ne4 {[%emt 0:00:52]} (25... Nxh5 $17 26. Qxh5 b3) 26. Ng3 {[%emt 0:00:36]} Nd6 {[%emt 0:01:45]} 27. Qf3 {[%emt 0:00:03] [#] aiming for Rxa8.} Qb7 {[%emt 0:00:04]} 28. Nf5 $2 {[%emt 0:00:41] Now White is beyond hope.} (28. h4 $17 {might work better.}) 28... Ng5 $19 {[%emt 0:00:16]} 29. Qf4 {[%emt 0:00:04]} Nxf5 {[%emt 0:00:01]} 30. Qxf5 {[%emt 0:00:01] [#]} Ne4 $1 {[%emt 0:00:03]} 31. h3 $2 {[%emt 0:00:45]} (31. f3 Rxa1 32. Rxa1) 31... b3 {[%emt 0:00:08] Black is clearly winning.} 32. Kh2 {[%emt 0:00:41]} c3 {[%emt 0:00:48]} 33. bxc3 {[%emt 0:00:08]} Rxa1 {[%emt 0:00:31]} 34. Rxa1 {[%emt 0:00:02]} Nxc3 {[%emt 0:00:11] White must now prevent ...b2.} ({Weaker is} 34... b2 35. Rb1 Rf8 36. Nd3 Qc7+ 37. Qe5 Qxc3 38. Rxb2 $17 (38. Nxb2 $2 Qc2 $19)) 35. Ra3 {[%emt 0:00:25][%cal Oa3b3] Rxb3! is the strong threat.} Rf8 {[%emt 0:01:48][%cal Ob3b2] And now ...b2! would win.} 36. Nd3 {[%emt 0:00:12]} b2 {[%emt 0:00:06]} 37. Nxb2 {[%emt 0:00:02]} Qxb2 {[%emt 0:00:00]} 38. Ra6 {[%emt 0:00:11]} Qb7 {[%emt 0:00:19] Inhibits Rc6.} 39. Ra1 {[%emt 0:00:12]} Ne4 {[%emt 0:00:12]} 40. g3 {[%emt 0:00:15]} (40. f3 $142 Qc7+ 41. Qe5) 40... g6 {[%emt 0:00:21]} 41. Qf4 {[%emt 0:00:04]} Qb2 {[%emt 0:00:09][%csl LRa1,LRf2]} 42. Rf1 {[%emt 0:00:17]} Rc8 {[%emt 0:00:06] Weighted Error Value: White=0.43/Black=0.09 (flawless)} 0-1

[Event "MCCT Chessable Masters-KO 2022"]
[Site "Online"]
[Date "2022.05.25"]
[Round "3.2"]
[White "Ding, Liren"]
[Black "Praggnanandhaa R"]
[Result "1/2-1/2"]
[ECO "D41"]
[WhiteElo "2806"]
[BlackElo "2642"]
[Annotator "TA"]
[PlyCount "82"]
[EventDate "2022.05.23"]
[EventType "k.o."]
[EventCountry "NET"]
[SourceTitle "playchess.com"]
[Source "ChessBase"]
[SourceQuality "1"]
[TimeControl "900+10"]

{[%evp 19,82,16,13,0,11,0,25,0,0,3,15,9,11,0,11,10,11,21,50,0,0,0,0,0,0,0,0,0,0,0,0,0,0,0,0,0,0,0,0,0,0,0,0,0,0,0,0,0,0,0,0,0,0,0,0,0,0,0,0,0,0,0,0,0,0]} 1. d4 {[%emt 0:00:00]} Nf6 {[%emt 0:00:00]} 2. c4 {[%emt 0:00:02]} e6 {[%emt 0:00:01]} 3. Nf3 {[%emt 0:00:09]} d5 {[%emt 0:00:01]} 4. Nc3 {[%emt 0:00:00]} c5 {[%emt 0:00:04]} 5. cxd5 {[%emt 0:00:01]} Nxd5 {[%emt 0:00:01]} 6. e4 {[%emt 0:00:01]} Nxc3 {[%emt 0:00:01]} 7. bxc3 {[%emt 0:00:00]} cxd4 {[%emt 0:00:00]} 8. cxd4 {[%emt 0:00:01]} Bb4+ {[%emt 0:00:01]} 9. Bd2 {[%emt 0:00:00]} Bxd2+ {[%emt 0:00:00]} 10. Qxd2 {[%emt 0:00:00]} O-O {[%emt 0:00:01]} 11. Rd1 {[%emt 0:00:05] D41: Queen's Gambit Declined: Semi-Tarrasch with 5 cxd5.} b6 {[%emt 0:00:02]} 12. Bd3 {[%emt 0:00:05]} Ba6 {[%emt 0:00:02]} 13. Bxa6 {[%emt 0:00:01] White has an edge.} Nxa6 {[%emt 0:00:01]} 14. O-O {[%emt 0:00:01]} Rc8 {[%emt 0:00:48] [#]} 15. h3 $146 {[%emt 0:00:02]} ({Predecessor:} 15. Qe2 Nb8 16. d5 exd5 17. Rxd5 Qc7 18. Nd4 Qc4 19. Qg4 Rc5 20. Nf5 g6 21. Rxc5 Qxc5 {½-½ (67) Giri,A (2764)-Nepomniachtchi,I (2784) chess24.com INT 2020}) 15... h6 {[%emt 0:01:31]} 16. Qe2 {[%emt 0:02:06]} Nb8 {[%emt 0:00:03][%cal Ba6b8,Bb8c6,Bc6e5][%mdl 32]} 17. d5 {[%emt 0:00:07]} exd5 {[%emt 0:00:04]} 18. Rxd5 {[%emt 0:00:15]} Qc7 {[%emt 0:05:20]} 19. Rfd1 {[%emt 0:00:42]} (19. Nd4 $14) 19... Qc4 $11 {[%emt 0:01:39] The position is equal.} 20. Qe3 {[%emt 0:00:18]} Nc6 {[%emt 0:00:04]} 21. Nh4 {[%emt 0:05:11] [#] Threatens to win with Nf5.} Rfe8 {[%emt 0:01:36]} ({Don't do} 21... Qxa2 22. Nf5 Kh7 23. Rd6 $16) 22. Rc1 {[%emt 0:03:48]} Qxe4 {[%emt 0:01:13]} 23. Qxe4 {[%emt 0:00:04]} Rxe4 {[%emt 0:00:01]} 24. Nf5 {[%emt 0:00:01] And now Nd6 would win.} Kh7 {[%emt 0:04:56][%cal Oc6b4]} 25. Rd7 {[%emt 0:01:55]} ({Much weaker is} 25. Nd6 Nb4 26. Nxc8 Nxd5 $17) 25... Ne5 {[%emt 0:00:13]} 26. Rxc8 {[%emt 0:00:01]} Nxd7 {[%emt 0:00:01][%mdl 4096] Endgame KRN-KRN} 27. Rc7 {[%emt 0:00:00][%csl LRa7,LRd7]} Re1+ {[%emt 0:00:45]} 28. Kh2 {[%emt 0:00:01]} Rd1 {[%emt 0:00:06]} 29. Rxa7 {[%emt 0:00:09]} Rd2 {[%emt 0:00:06]} 30. Ne3 {[%emt 0:00:54]} g6 {[%emt 0:00:29]} 31. Nc4 {[%emt 0:01:05]} Rd4 {[%emt 0:00:06]} 32. Rb7 {[%emt 0:00:18]} Rxc4 {[%emt 0:00:37]} 33. Rxd7 {[%emt 0:00:01] KR-KR} Kg7 {[%emt 0:00:01]} 34. Rb7 {[%emt 0:00:01]} Rc2 {[%emt 0:00:06]} 35. f3 {[%emt 0:00:04]} Rxa2 {[%emt 0:00:02]} 36. Rxb6 {[%emt 0:00:01]} h5 {[%emt 0:00:02]} 37. h4 {[%emt 0:00:03]} Ra4 {[%emt 0:00:01]} 38. Kg3 {[%emt 0:00:01]} Rc4 {[%emt 0:00:02]} 39. Ra6 {[%emt 0:00:02]} Rb4 {[%emt 0:00:01]} 40. Ra5 {[%emt 0:00:06]} Rb3 {[%emt 0:00:02]} 41. Ra6 {[%emt 0:00:04]} Rb4 {[%emt 0:00:03] An interesting draw.  Weighted Error Value: White=0.04 (flawless) /Black=0.03 (flawless)} 1/2-1/2

[Event "MCCT Chessable Masters-KO 2022"]
[Site "Online"]
[Date "2022.05.25"]
[Round "3.2"]
[White "Praggnanandhaa R"]
[Black "Ding, Liren"]
[Result "1/2-1/2"]
[ECO "A30"]
[WhiteElo "2642"]
[BlackElo "2806"]
[Annotator "TA"]
[PlyCount "87"]
[EventDate "2022.05.23"]
[EventType "k.o."]
[EventCountry "NET"]
[SourceTitle "playchess.com"]
[Source "ChessBase"]
[SourceQuality "1"]
[TimeControl "900+10"]

{[%evp 18,87,24,-26,0,0,0,0,0,0,0,0,0,0,0,0,45,-22,35,39,39,0,73,0,0,0,0,0,0,-13,8,0,6,0,0,-2,-1,-15,-14,-11,0,0,0,-8,0,0,0,0,0,0,0,0,0,0,0,0,16,16,16,16,37,0,0,0,0,0,0,0,0,0,0,0]} 1. d4 {[%emt 0:00:00]} Nf6 {[%emt 0:00:00]} 2. Nf3 {[%emt 0:00:13]} b6 {[%emt 0:00:14]} 3. c4 {[%emt 0:00:20]} Bb7 {[%emt 0:00:02]} 4. g3 {[%emt 0:00:09]} c5 {[%emt 0:00:01]} 5. Bg2 {[%emt 0:00:27]} cxd4 {[%emt 0:00:02]} 6. O-O {[%emt 0:00:12]} g6 {[%emt 0:00:08]} 7. Qxd4 {[%emt 0:00:19]} Bg7 {[%emt 0:00:01]} 8. Nc3 {[%emt 0:00:45]} Nc6 {[%emt 0:00:06]} 9. Qh4 {[%emt 0:01:32]} h6 {[%emt 0:00:01]} 10. Nd5 {[%emt 0:00:20]} (10. Qf4 $142 $1) 10... Rc8 {[%emt 0:00:02] A30: Symmetrical English: Double Fianchetto and Hedgehog.} 11. Rb1 {[%emt 0:01:17]} Na5 {[%emt 0:00:28][%csl LRc4,LRd5]} 12. Nd2 {[%emt 0:04:25] [#]} O-O $146 {[%emt 0:05:59]} ({Predecessor:} 12... e6 13. Nxf6+ Bxf6 14. Qh3 Bxg2 15. Qxg2 Nxc4 16. Ne4 Be7 17. b3 Nd6 18. Nxd6+ Bxd6 {0-1 (38) Bregadze,L (2458)-Ashwin,J (2442) Saint Louis 2014}) 13. Nxf6+ {[%emt 0:00:39]} Bxf6 {[%emt 0:00:00]} 14. Qxh6 {[%emt 0:00:01]} Bxg2 {[%emt 0:00:01]} 15. Kxg2 {[%emt 0:00:01]} Nxc4 {[%emt 0:00:00]} 16. Ne4 {[%emt 0:00:16]} Qc7 {[%emt 0:02:40]} 17. Nxf6+ {[%emt 0:01:52]} exf6 {[%emt 0:00:00]} 18. b3 $1 {[%emt 0:00:04] Really sharp!} Qb7+ {[%emt 0:00:05]} 19. Kg1 {[%emt 0:00:16]} (19. f3 $5 {[%cal Rb3c4]} Ne5 20. Rb2 $14) 19... Ne5 {[%emt 0:00:15]} (19... Qe4 $11 20. Bf4 Ne5) 20. Bb2 {[%emt 0:00:20]} ({White should try} 20. Rb2 $16) 20... Rc2 $11 {[%emt 0:00:03]} 21. Bxe5 {[%emt 0:00:40]} ({Much worse is} 21. Ba3 Re8 22. Rb2 {[#]} Rxe2 $1 23. Rxe2 Nf3+ 24. Kh1 Nd4+ 25. f3 Nxe2 $11) 21... fxe5 {[%emt 0:00:02]} 22. Qe3 {[%emt 0:00:17]} Re8 {[%emt 0:01:29]} 23. a4 {[%emt 0:00:09]} Qa6 {[%emt 0:00:08]} 24. Rfe1 {[%emt 0:00:28]} d5 {[%emt 0:00:01]} 25. Rbd1 {[%emt 0:00:24]} Qa5 {[%emt 0:00:37]} 26. Qd3 {[%emt 0:00:05]} Rc5 {[%emt 0:00:06]} 27. Qd2 {[%emt 0:00:09]} (27. h4 {keeps more tension.} Qb4 28. Kg2 Qg4 29. f3) 27... Qxd2 {[%emt 0:00:22]} 28. Rxd2 {[%emt 0:00:00][%mdl 4096] Endgame KRR-KRR} Rec8 {[%emt 0:00:13]} 29. Kg2 {[%emt 0:00:32]} a5 {[%emt 0:00:13]} 30. e3 {[%emt 0:00:11]} Kg7 {[%emt 0:00:11]} 31. Rb1 {[%emt 0:00:13]} Rd8 {[%emt 0:02:41]} 32. b4 {[%emt 0:00:13]} Rc4 {[%emt 0:00:01]} 33. bxa5 {[%emt 0:00:01]} bxa5 {[%emt 0:00:00]} 34. Rb5 {[%emt 0:00:03][%csl LRa5,LRd5]} Rxa4 {[%emt 0:00:00]} 35. Rbxd5 {[%emt 0:00:09]} Rxd5 {[%emt 0:00:00]} 36. Rxd5 {[%emt 0:00:01] KR-KR} e4 {[%emt 0:00:04]} 37. g4 {[%emt 0:00:09]} Kf6 {[%emt 0:00:18]} 38. h4 {[%emt 0:00:05]} Ra1 {[%emt 0:00:07]} 39. Kg3 {[%emt 0:00:19]} a4 {[%emt 0:00:09] The position is equal.} 40. Ra5 {[%emt 0:00:03]} a3 {[%emt 0:00:02]} 41. Kf4 {[%emt 0:00:09]} Rf1 {[%emt 0:00:10]} 42. Rxa3 {[%emt 0:00:03]} Rxf2+ {[%emt 0:00:02]} 43. Kxe4 {[%emt 0:00:01]} Rh2 {[%emt 0:00:03]} 44. h5 {[%emt 0:00:03] Weighted Error Value: White=0.08 (flawless) /Black=0.09 (flawless)} 1/2-1/2